fUST/lending_fUST_20250408
["ID","MTS","AMOUNT","RATE_DAILY","PERIOD"]
[357462370,1744074665270,-500.0,0.00026027,2]
[357462371,1744074665280,-753.71,0.00026027,2]
[357462372,1744074665290,-500.0,0.00026027,2]
[357462373,1744074665300,-500.0,0.00026027,2]
[357462374,1744074665310,-500.0,0.00026027,2]
[357462375,1744074665320,-500.0,0.00026027,2]
[357462376,1744074665330,-612.5,0.00026027,2]
[357462377,1744074665340,-776.13,0.00026027,2]
[357462378,1744074665350,-500.0,0.00026027,2]
[357462379,1744074665360,-616.31,0.00026027,2]
[357462380,1744074665369,-782.19,0.00026027,2]
[357462381,1744074665379,-876.68,0.00026027,2]
[357462382,1744074665389,-1913.65,0.00026027,2]
[357462383,1744074665399,-1363.45,0.00026027,2]
[357462384,1744074665409,-581.13,0.00026027,2]
[357462385,1744074665418,-500.0,0.00026027,2]
[357462386,1744074665428,-2180.15,0.00026027,2]
[357462387,1744074665439,-500.0,0.00026027,2]
[357462388,1744074665448,-1056.87,0.00026027,2]
[357462389,1744074665458,-500.0,0.00026027,2]
[357462390,1744074665468,-1638.96,0.00026027,2]
[357462391,1744074665479,-1826.87,0.00026027,2]
[357462392,1744074665489,-2187.06,0.00026027,2]
[357462393,1744074665499,-500.0,0.00026027,2]
[357462394,1744074665509,-1054.98,0.00026027,2]
[357462395,1744074665519,-1015.17,0.00026027,2]
[357462396,1744074665528,-4072.57,0.00026027,2]
[357462397,1744074665538,-1010.38,0.00026027,2]
[357462398,1744074665547,-1169.46,0.00026027,2]
[357462399,1744074665557,-197.98892385,0.00026027,2]
[357462400,1744074665567,-606.32,0.00026027,2]
[357462401,1744074665576,-500.0,0.00026027,2]
[357462402,1744074665586,-1032.96,0.00026027,2]
[357462403,1744074665596,-996.48,0.00026027,2]
[357462404,1744074665605,-668.21,0.00026027,2]
[357462405,1744074665615,-843.03,0.00026027,2]
[357462406,1744074665625,-500.0,0.00026027,2]
[357462407,1744074665634,-612.83,0.00026027,2]
[357462408,1744074665644,-1371.06,0.00026027,2]
[357462409,1744074665653,-500.0,0.00026027,2]
[357462410,1744074665663,-1453.16,0.00026027,2]
[357462411,1744074665673,-534.54,0.00026027,2]
[357462412,1744074665682,-500.0,0.00026027,2]
[357462413,1744074665692,-2298.95,0.00026027,2]
[357462414,1744074665702,-500.0,0.00026027,2]
[357462415,1744074665712,-320.1,0.00026027,2]
[357462416,1744074665722,-1238.16,0.00026027,2]
[357462417,1744074665735,-1561.47,0.00026027,2]
[357462418,1744074665744,-500.0,0.00026027,2]
[357462419,1744074665755,-1480.25,0.00026027,2]
[357462420,1744074665766,-500.0,0.00026027,2]
[357462421,1744074665775,-954.42,0.00026027,2]
[357462422,1744074665786,-1158.68,0.00026027,2]
[357462423,1744074665796,-935.67,0.00026027,2]
[357462424,1744074665806,-981.04,0.00026027,2]
[357462425,1744074665816,-500.0,0.00026027,2]
[357462426,1744074665826,-1117.62,0.00026027,2]
[357462427,1744074665835,-500.0,0.00026027,2]
[357462428,1744074665845,-339.96220746,0.00026027,2]
[357462429,1744074665854,-891.04,0.00026027,2]
[357462430,1744074665864,-500.0,0.00026027,2]
[357462431,1744074665874,-626.78,0.00026027,2]
[357462432,1744074665885,-7096.89,0.00026027,2]
[357462433,1744074665895,-500.0,0.00026027,2]
[357462434,1744074665904,-2020.19,0.00026027,2]
[357462435,1744074665913,-500.0,0.00026027,2]
[357462436,1744074665923,-500.0,0.00026027,2]
[357462437,1744074665932,-673.71,0.00026027,2]
[357462438,1744074665942,-915.3,0.00026027,2]
[357462439,1744074665952,-1530.39,0.00026027,2]
[357462440,1744074665961,-500.0,0.00026027,2]
[357462441,1744074665971,-1001.26,0.00026027,2]
[357462442,1744074665982,-1779.31,0.00026027,2]
[357462443,1744074665991,-500.0,0.00026027,2]
[357462444,1744074666001,-1396.3,0.00026027,2]
[357462445,1744074666011,-548.67640487,0.00026301,2]
[357462446,1744074666021,-457.95138352,0.00026301,2]
[357462447,1744074666031,-500.0,0.00026301,2]
[357462448,1744074666041,-332.24900248,0.00026301,2]
[357462449,1744074666050,-500.0,0.00026301,2]
[357462450,1744074666060,-500.0,0.00026301,2]
[357462451,1744074666070,-500.0,0.00026301,2]
[357462452,1744074666079,-356.03554278,0.00026301,2]
[357462453,1744074666089,-1054.15,0.00026301,2]
[357462454,1744074666099,-500.0,0.00026301,2]
[357462455,1744074666109,-565.54,0.00026301,2]
[357462456,1744074666118,-897.24,0.00026301,2]
[357462457,1744074666128,-539.88,0.00026301,2]
[357462458,1744074666137,-898.45,0.00026301,2]
[357462459,1744074666147,-500.0,0.00026301,2]
[357462460,1744074666157,-500.0,0.00026301,2]
[357462461,1744074666167,-1099.15,0.00026301,2]
[357462462,1744074666176,-500.0,0.00026301,2]
[357462463,1744074666186,-621.92,0.00026301,2]
[357462464,1744074666196,-946.78,0.00026301,2]
[357462465,1744074666206,-500.0,0.00026301,2]
[357462466,1744074666216,-753.71,0.00026301,2]
[357462467,1744074666226,-500.0,0.00026301,2]
[357462468,1744074666236,-500.0,0.00026301,2]
[357462469,1744074666250,-500.0,0.00026301,2]
[357462470,1744074666259,-500.0,0.00026301,2]
[357462471,1744074666269,-612.5,0.00026301,2]
[357462472,1744074666279,-776.13,0.00026301,2]
[357462473,1744074666289,-500.0,0.00026301,2]
[357462474,1744074666298,-616.31,0.00026301,2]
[357462475,1744074666308,-782.19,0.00026301,2]
[357462476,1744074666320,-876.68,0.00026301,2]
[357462477,1744074666330,-1913.65,0.00026301,2]
[357462478,1744074666339,-1363.45,0.00026301,2]
[357462479,1744074666349,-581.13,0.00026301,2]
[357462480,1744074666358,-500.0,0.00026301,2]
[357462481,1744074666574,-2180.15,0.00026301,2]
[357462482,1744074666585,-500.0,0.00026301,2]
[357462483,1744074666595,-1056.87,0.00026301,2]
[357462484,1744074666605,-500.0,0.00026301,2]
[357462485,1744074666615,-1638.96,0.00026301,2]
[357462486,1744074666625,-1826.87,0.00026301,2]
[357462487,1744074666635,-2187.06,0.00026301,2]
[357462488,1744074666645,-500.0,0.00026301,2]
[357462489,1744074666655,-1054.98,0.00026301,2]
[357462490,1744074666665,-1015.17,0.00026301,2]
[357462491,1744074666675,-4072.57,0.00026301,2]
[357462492,1744074666685,-1010.38,0.00026301,2]
[357462493,1744074666697,-1169.46,0.00026301,2]
[357462494,1744074666707,-606.32,0.00026301,2]
[357462495,1744074666717,-500.0,0.00026301,2]
[357462496,1744074666729,-1032.96,0.00026301,2]
[357462497,1744074666739,-996.48,0.00026301,2]
[357462498,1744074666748,-668.21,0.00026301,2]
[357462499,1744074666758,-843.03,0.00026301,2]
[357462500,1744074666768,-500.0,0.00026301,2]
[357462501,1744074666777,-612.83,0.00026301,2]
[357462502,1744074666787,-1371.06,0.00026301,2]
[357462503,1744074666797,-500.0,0.00026301,2]
[357462504,1744074666807,-1453.16,0.00026301,2]
[357462505,1744074666817,-249.82684509,0.00026301,2]
[357462506,1744074666827,-2298.95,0.00026301,2]
[357462507,1744074666838,-500.0,0.00026301,2]
[357462508,1744074666848,-1238.16,0.00026301,2]
[357462509,1744074666858,-1561.47,0.00026301,2]
[357462510,1744074666868,-264.06,0.00026301,2]
[357462511,1744074666878,-169.421274,0.00026301,7]
[357462512,1744074666888,-1480.25,0.00026301,2]
[357462513,1744074666898,-169.421274,0.00026301,7]
[357462514,1744074666908,-500.0,0.00026301,2]
[357462515,1744074666918,-954.42,0.00026301,2]
[357462516,1744074666928,-1158.68,0.00026301,2]
[357462517,1744074666938,-935.67,0.00026301,2]
[357462518,1744074666948,-981.04,0.00026301,2]
[357462519,1744074666958,-500.0,0.00026301,2]
[357462520,1744074666968,-1117.62,0.00026301,2]
[357462521,1744074666979,-500.0,0.00026301,2]
[357462522,1744074666989,-891.04,0.00026301,2]
[357462523,1744074666999,-484.73781268,0.00026301,2]
[357462524,1744074667009,-255.11721,0.00026301,7]
[357462525,1744074667019,-7096.89,0.00026301,2]
[357462526,1744074667029,-500.0,0.00026301,2]
[357462527,1744074667039,-2020.19,0.00026301,2]
[357462528,1744074667049,-488.82,0.00026301,2]
[357462529,1744074667059,-500.0,0.00026301,2]
[357462530,1744074667069,-673.71,0.00026301,2]
[357462531,1744074667079,-915.3,0.00026301,2]
[357462532,1744074667090,-1530.39,0.00026301,2]
[357462533,1744074667101,-500.0,0.00026301,2]
[357462534,1744074667110,-199.672632,0.00026301,7]
[357462535,1744074667120,-1001.26,0.00026301,2]
[357462536,1744074667130,-1779.31,0.00026301,2]
[357462537,1744074667140,-500.0,0.00026301,2]
[357462538,1744074667150,-151.0,0.00026301,7]
[357462539,1744074667159,-1396.3,0.00026301,2]
[357462540,1744074667169,-231.28369723,0.00026379,2]
[357462541,1744074667179,-1000.0,0.00026452,2]
[357462542,1744074667190,-1000.0,0.00026452,2]
[357462543,1744074667200,-1000.0,0.00026452,2]
[357462544,1744074667211,-1000.0,0.00026452,2]
[357462545,1744074667222,-1000.0,0.00026452,2]
[357462546,1744074667234,-1000.0,0.00026452,2]
[357462547,1744074667248,-1000.0,0.00026452,2]
[357462548,1744074667262,-760.47413193,0.00026452,2]
[357462549,1744074667279,-500.0,0.00026452,2]
[357462550,1744074667300,-1000.0,0.00026452,2]
[357462551,1744074667319,-1000.0,0.00026452,2]
[357462552,1744074667342,-500.0,0.00026452,2]
[357462553,1744074667364,-1000.0,0.00026452,2]
[357462554,1744074667381,-500.0,0.00026452,2]
[357462555,1744074667392,-1000.0,0.00026452,2]
[357462556,1744074667402,-1000.0,0.00026452,2]
[357462557,1744074667413,-1000.0,0.00026452,2]
[357462558,1744074667424,-1000.0,0.00026452,2]
[357462559,1744074667439,-459.784554,0.00026574,7]
[357462560,1744074667450,-459.784554,0.00026574,7]
[357462561,1744074667463,-252.3801,0.00026574,7]
[357462562,1744074667474,-151.0,0.00026574,7]
[357462563,1744074667487,-252.3801,0.00026574,7]
[357462564,1744074667498,-151.0,0.00026574,7]
[357462565,1744074667508,-151.0,0.00026574,2]
[357462566,1744074667518,-190.618464,0.00026574,2]
[357462567,1744074667529,-190.618464,0.00026574,2]
[357462568,1744074667539,-152.6853,0.00026574,7]
[357462569,1744074667550,-500.0,0.00026575,2]
[357462570,1744074667560,-500.0,0.00026575,2]
[357462571,1744074667571,-500.0,0.00026575,2]
[357462572,1744074667581,-500.0,0.00026575,2]
[357462573,1744074667591,-1054.15,0.00026575,2]
[357462574,1744074667601,-394.08832632,0.00026575,2]
[357462575,1744074667613,-565.54,0.00026575,2]
[357462576,1744074667623,-897.24,0.00026575,2]
[357462577,1744074667634,-539.88,0.00026575,2]
[357462578,1744074667647,-898.45,0.00026575,2]
[357462579,1744074667657,-500.0,0.00026575,2]
[357462580,1744074667669,-212.89412388,0.00026575,2]
[357462581,1744074667680,-1099.15,0.00026575,2]
[357462582,1744074667690,-500.0,0.00026575,2]
[357462583,1744074667700,-621.92,0.00026575,2]
[357462584,1744074667711,-946.78,0.00026575,2]
[357462585,1744074667721,-500.0,0.00026575,2]
[357462586,1744074667733,-753.71,0.00026575,2]
[357462587,1744074667743,-151.0,0.00026575,7]
[357462588,1744074667753,-630.53760105,0.00026575,2]
[357462589,1744074667763,-151.0,0.00026575,7]
[357462590,1744074667773,-500.0,0.00026575,2]
[357462591,1744074667784,-500.0,0.00026575,2]
[357462592,1744074667795,-500.0,0.00026575,2]
[357462593,1744074667806,-151.0,0.00026575,7]
[357462594,1744074667817,-160.0,0.00026575,7]
[357462595,1744074667827,-160.0,0.00026575,7]
[357462596,1744074667837,-290.742792,0.00026575,7]
[357462597,1744074667847,-612.5,0.00026575,2]
[357462598,1744074667858,-776.13,0.00026575,2]
[357462599,1744074667868,-290.742792,0.00026575,7]
[357462600,1744074667879,-308.66,0.00026575,2]
[357462601,1744074667890,-616.31,0.00026575,2]
[357462602,1744074667900,-782.19,0.00026575,2]
[357462603,1744074667911,-876.68,0.00026575,2]
[357462604,1744074667921,-151.0,0.00026575,7]
[357462605,1744074667931,-1913.65,0.00026575,2]
[357462606,1744074667941,-151.0,0.00026575,7]
[357462607,1744074667951,-12527.9349248,0.00026575,7]
[357462608,1744074667962,-1363.45,0.00026575,2]
[357462609,1744074667972,-581.13,0.00026575,2]
[357462610,1744074667982,-500.0,0.00026575,2]
[357462611,1744074667993,-2180.15,0.00026575,2]
[357462612,1744074668003,-500.0,0.00026575,2]
[357462613,1744074668013,-1056.87,0.00026575,2]
[357462614,1744074668023,-500.0,0.00026575,2]
[357462615,1744074668033,-1638.96,0.00026575,2]
[357462616,1744074668043,-1826.87,0.00026575,2]
[357462617,1744074668053,-2187.06,0.00026575,2]
[357462618,1744074668064,-500.0,0.00026575,2]
[357462619,1744074668074,-1054.98,0.00026575,2]
[357462620,1744074668084,-4072.57,0.00026575,2]
[357462621,1744074668094,-1015.17,0.00026575,2]
[357462622,1744074668104,-1010.38,0.00026575,2]
[357462623,1744074668114,-1169.46,0.00026575,2]
[357462624,1744074668126,-606.32,0.00026575,2]
[357462625,1744074668137,-160.0,0.00026575,7]
[357462626,1744074668147,-500.0,0.00026575,2]
[357462627,1744074668159,-1032.96,0.00026575,2]
[357462628,1744074668169,-996.48,0.00026575,2]
[357462629,1744074668179,-668.21,0.00026575,2]
[357462630,1744074668190,-843.03,0.00026575,2]
[357462631,1744074668200,-500.0,0.00026575,2]
[357462632,1744074668210,-199.036966,0.00026575,7]
[357462633,1744074668220,-612.83,0.00026575,2]
[357462634,1744074668231,-199.036966,0.00026575,7]
[357462635,1744074668247,-1371.06,0.00026575,2]
[357462636,1744074668261,-500.0,0.00026575,2]
[357462637,1744074668271,-1453.16,0.00026575,2]
[357462638,1744074668283,-2298.95,0.00026575,2]
[357462639,1744074668293,-500.0,0.00026575,2]
[357462640,1744074668304,-1238.16,0.00026575,2]
[357462641,1744074668313,-1561.47,0.00026575,2]
[357462642,1744074668328,-1480.25,0.00026575,2]
[357462643,1744074668338,-405.02,0.00026575,2]
[357462644,1744074668348,-954.42,0.00026575,2]
[357462645,1744074668358,-1158.68,0.00026575,2]
[357462646,1744074668368,-981.04,0.00026575,2]
[357462647,1744074668378,-500.0,0.00026575,2]
[357462648,1744074668388,-935.67,0.00026575,2]
[357462649,1744074668397,-1117.62,0.00026575,2]
[357462650,1744074668406,-319.42,0.00026575,2]
[357462651,1744074668416,-783.73948285,0.00026575,7]
[357462652,1744074668425,-891.04,0.00026575,2]
[357462653,1744074668435,-7096.89,0.00026575,2]
[357462654,1744074668444,-500.0,0.00026575,2]
[357462655,1744074668454,-2020.19,0.00026575,2]
[357462656,1744074668463,-419.36665037,0.00026575,7]
[357462657,1744074668473,-500.0,0.00026575,2]
[357462658,1744074668484,-673.71,0.00026575,2]
[357462659,1744074668494,-915.3,0.00026575,2]
[357462660,1744074668504,-1530.39,0.00026575,2]
[357462661,1744074668513,-500.0,0.00026575,2]
[357462662,1744074668523,-1001.26,0.00026575,2]
[357462663,1744074668532,-1779.31,0.00026575,2]
[357462664,1744074668542,-500.0,0.00026575,2]
[357462665,1744074668551,-1396.3,0.00026575,2]
[357462666,1744074668561,-151.0,0.00026848,7]
[357462667,1744074668570,-500.0,0.00026849,2]
[357462668,1744074668580,-500.0,0.00026849,2]
[357462669,1744074668590,-500.0,0.00026849,2]
[357462670,1744074668600,-500.0,0.00026849,2]
[357462671,1744074668610,-1054.15,0.00026849,2]
[357462672,1744074668620,-565.54,0.00026849,2]
[357462673,1744074668629,-897.24,0.00026849,2]
[357462674,1744074668639,-539.88,0.00026849,2]
[357462675,1744074668649,-898.45,0.00026849,2]
[357462676,1744074668658,-500.0,0.00026849,2]
[357462677,1744074668668,-1099.15,0.00026849,2]
[357462678,1744074668677,-500.0,0.00026849,2]
[357462679,1744074668687,-621.92,0.00026849,2]
[357462680,1744074668698,-946.78,0.00026849,2]
[357462681,1744074668707,-541.98,0.00026849,2]
[357462682,1744074668717,-753.71,0.00026849,2]
[357462683,1744074668727,-500.0,0.00026849,2]
[357462684,1744074668737,-500.0,0.00026849,2]
[357462685,1744074668746,-500.0,0.00026849,2]
[357462686,1744074668756,-612.5,0.00026849,2]
[357462687,1744074668766,-776.13,0.00026849,2]
[357462688,1744074668775,-616.31,0.00026849,2]
[357462689,1744074668785,-782.19,0.00026849,2]
[357462690,1744074668795,-876.68,0.00026849,2]
[357462691,1744074668804,-1913.65,0.00026849,2]
[357462692,1744074668814,-1363.45,0.00026849,2]
[357462693,1744074668824,-581.13,0.00026849,2]
[357462694,1744074668834,-500.0,0.00026849,2]
[357462695,1744074668845,-2180.15,0.00026849,2]
[357462696,1744074668854,-500.0,0.00026849,2]
[357462697,1744074668864,-1056.87,0.00026849,2]
[357462698,1744074668873,-500.0,0.00026849,2]
[357462699,1744074668883,-1638.96,0.00026849,2]
[357462700,1744074668892,-1826.87,0.00026849,2]
[357462701,1744074668902,-2187.06,0.00026849,2]
[357462702,1744074668912,-500.0,0.00026849,2]
[357462703,1744074668922,-1054.98,0.00026849,2]
[357462704,1744074668932,-4072.57,0.00026849,2]
[357462705,1744074668941,-1015.17,0.00026849,2]
[357462706,1744074668951,-1010.38,0.00026849,2]
[357462707,1744074668961,-1169.46,0.00026849,2]
[357462708,1744074668970,-606.32,0.00026849,2]
[357462709,1744074668980,-500.0,0.00026849,2]
[357462710,1744074668990,-1032.96,0.00026849,2]
[357462711,1744074669000,-996.48,0.00026849,2]
[357462712,1744074669010,-668.21,0.00026849,2]
[357462713,1744074669019,-843.03,0.00026849,2]
[357462714,1744074669029,-500.0,0.00026849,2]
[357462715,1744074669039,-612.83,0.00026849,2]
[357462716,1744074669049,-1371.06,0.00026849,2]
[357462717,1744074669059,-500.0,0.00026849,2]
[357462718,1744074669068,-1453.16,0.00026849,2]
[357462719,1744074669078,-2298.95,0.00026849,2]
[357462720,1744074669087,-262.84,0.00026849,2]
[357462721,1744074669097,-1238.16,0.00026849,2]
[357462722,1744074669107,-1561.47,0.00026849,2]
[357462723,1744074669116,-1480.25,0.00026849,2]
[357462724,1744074669126,-954.42,0.00026849,2]
[357462725,1744074669136,-1158.68,0.00026849,2]
[357462726,1744074669146,-981.04,0.00026849,2]
[357462727,1744074669155,-500.0,0.00026849,2]
[357462728,1744074669218,-935.67,0.00026849,2]
[357462729,1744074669228,-1117.62,0.00026849,2]
[357462730,1744074669242,-891.04,0.00026849,2]
[357462731,1744074669256,-7096.89,0.00026849,2]
[357462732,1744074669266,-500.0,0.00026849,2]
[357462733,1744074669276,-2020.19,0.00026849,2]
[357462734,1744074669286,-500.0,0.00026849,2]
[357462735,1744074669297,-673.71,0.00026849,2]
[357462736,1744074669310,-915.3,0.00026849,2]
[357462737,1744074669319,-1530.39,0.00026849,2]
[357462738,1744074669330,-565.11,0.00026849,2]
[357462739,1744074669340,-1001.26,0.00026849,2]
[357462740,1744074669351,-1779.31,0.00026849,2]
[357462741,1744074669361,-500.0,0.00026849,2]
[357462742,1744074669371,-1396.3,0.00026849,2]
[357462743,1744074669381,-500.0,0.00027123,2]
[357462744,1744074669390,-477.96081871,0.00027123,2]
[357462745,1744074669400,-500.0,0.00027123,2]
[357462746,1744074669410,-163.17449259,0.00027123,2]
[357462747,1744074669421,-1054.15,0.00027123,2]
[357462748,1744074669431,-565.54,0.00027123,2]
[357462749,1744074669441,-897.24,0.00027123,2]
[357462750,1744074669450,-539.88,0.00027123,2]
[357462751,1744074669460,-898.45,0.00027123,2]
[357462752,1744074669469,-500.0,0.00027123,2]
[357462753,1744074669478,-1099.15,0.00027123,2]
[357462754,1744074669488,-620.55,0.00027123,2]
[357462755,1744074669498,-621.92,0.00027123,2]
[357462756,1744074669507,-946.78,0.00027123,2]
[357462757,1744074669516,-753.71,0.00027123,2]
[357462758,1744074669526,-500.0,0.00027123,2]
[357462759,1744074669535,-561.33,0.00027123,2]
[357462760,1744074669545,-500.0,0.00027123,2]
[357462761,1744074669554,-612.5,0.00027123,2]
[357462762,1744074669563,-776.13,0.00027123,2]
[357462763,1744074669573,-616.31,0.00027123,2]
[357462764,1744074669582,-782.19,0.00027123,2]
[357462765,1744074669591,-876.68,0.00027123,2]
[357462766,1744074669601,-1913.65,0.00027123,2]
[357462767,1744074669610,-1363.45,0.00027123,2]
[357462768,1744074669619,-581.13,0.00027123,2]
[357462769,1744074669629,-500.0,0.00027123,2]
[357462770,1744074669638,-2180.15,0.00027123,2]
[357462771,1744074669647,-500.0,0.00027123,2]
[357462772,1744074669656,-1056.87,0.00027123,2]
[357462773,1744074669665,-500.0,0.00027123,2]
[357462774,1744074669675,-1638.96,0.00027123,2]
[357462775,1744074669684,-1826.87,0.00027123,2]
[357462776,1744074669696,-2187.06,0.00027123,2]
[357462777,1744074669707,-366.72711712,0.00027123,2]
[357462778,1744074669716,-1054.98,0.00027123,2]
[357462779,1744074669726,-4072.57,0.00027123,2]
[357462780,1744074669735,-1015.17,0.00027123,2]
[357462781,1744074669745,-1010.38,0.00027123,2]
[357462782,1744074669754,-1169.46,0.00027123,2]
[357462783,1744074669763,-606.32,0.00027123,2]
[357462784,1744074669772,-295.36070026,0.00027123,2]
[357462785,1744074669782,-1032.96,0.00027123,2]
[357462786,1744074669792,-996.48,0.00027123,2]
[357462787,1744074669801,-668.21,0.00027123,2]
[357462788,1744074669810,-843.03,0.00027123,2]
[357462789,1744074669820,-500.0,0.00027123,2]
[357462790,1744074669829,-612.83,0.00027123,2]
[357462791,1744074669838,-1371.06,0.00027123,2]
[357462792,1744074669848,-500.0,0.00027123,2]
[357462793,1744074669857,-1453.16,0.00027123,2]
[357462794,1744074669867,-2298.95,0.00027123,2]
[357462795,1744074669876,-1238.16,0.00027123,2]
[357462796,1744074669887,-1561.47,0.00027123,2]
[357462797,1744074669897,-1480.25,0.00027123,2]
[357462798,1744074669906,-954.42,0.00027123,2]
[357462799,1744074669916,-1158.68,0.00027123,2]
[357462800,1744074669926,-981.04,0.00027123,2]
[357462801,1744074669935,-243.61,0.00027123,2]
[357462802,1744074669944,-935.67,0.00027123,2]
[357462803,1744074669953,-1117.62,0.00027123,2]
[357462804,1744074669962,-891.04,0.00027123,2]
[357462805,1744074669973,-7096.89,0.00027123,2]
[357462806,1744074669983,-500.0,0.00027123,2]
[357462807,1744074669992,-2020.19,0.00027123,2]
[357462808,1744074670001,-442.975635,0.00027123,2]
[357462809,1744074670010,-673.71,0.00027123,2]
[357462810,1744074670020,-915.3,0.00027123,2]
[357462811,1744074670029,-1530.39,0.00027123,2]
[357462812,1744074670039,-1001.26,0.00027123,2]
[357462813,1744074670049,-1779.31,0.00027123,2]
[357462814,1744074670058,-175.39,0.00027123,2]
[357462815,1744074670067,-1396.3,0.00027123,2]
[357462816,1744074670077,-150.0,0.00027212,2]
[357462817,1744074670086,-200.0,0.00027397,2]
[357462818,1744074670095,-500.0,0.00027397,2]
[357462819,1744074670105,-500.0,0.00027397,2]
[357462820,1744074670114,-1054.15,0.00027397,2]
[357462821,1744074670123,-565.54,0.00027397,2]
[357462822,1744074670133,-897.24,0.00027397,2]
[357462823,1744074670142,-539.88,0.00027397,2]
[357462824,1744074670151,-898.45,0.00027397,2]
[357462825,1744074670160,-500.0,0.00027397,2]
[357462826,1744074670170,-1099.15,0.00027397,2]
[357462827,1744074670179,-621.92,0.00027397,2]
[357462828,1744074670188,-946.78,0.00027397,2]
[357462829,1744074670197,-753.71,0.00027397,2]
[357462830,1744074670206,-370.32447422,0.00027397,2]
[357462831,1744074670215,-500.0,0.00027397,2]
[357462832,1744074670225,-612.5,0.00027397,2]
[357462833,1744074670235,-776.13,0.00027397,2]
[357462834,1744074670248,-616.31,0.00027397,2]
[357462835,1744074670258,-343.9182,0.00027397,2]
[357462836,1744074670267,-782.19,0.00027397,2]
[357462837,1744074670277,-876.68,0.00027397,2]
[357462838,1744074670287,-1913.65,0.00027397,2]
[357462839,1744074670297,-1363.45,0.00027397,2]
[357462840,1744074670306,-581.13,0.00027397,2]
[357462841,1744074670316,-431.65,0.00027397,2]
[357462842,1744074670327,-2180.15,0.00027397,2]
[357462843,1744074670336,-500.0,0.00027397,2]
[357462844,1744074670346,-1056.87,0.00027397,2]
[357462845,1744074670355,-566.14692992,0.00027397,2]
[357462846,1744074670365,-1638.96,0.00027397,2]
[357462847,1744074670375,-1826.87,0.00027397,2]
[357462848,1744074670384,-2187.06,0.00027397,2]
[357462849,1744074670394,-1054.98,0.00027397,2]
[357462850,1744074670403,-4072.57,0.00027397,2]
[357462851,1744074670414,-1015.17,0.00027397,2]
[357462852,1744074670423,-1010.38,0.00027397,2]
[357462853,1744074670433,-1169.46,0.00027397,2]
[357462854,1744074670442,-606.32,0.00027397,2]
[357462855,1744074670452,-1032.96,0.00027397,2]
[357462856,1744074670462,-996.48,0.00027397,2]
[357462857,1744074670471,-668.21,0.00027397,2]
[357462858,1744074670480,-843.03,0.00027397,2]
[357462859,1744074670490,-500.0,0.00027397,2]
[357462860,1744074670500,-612.83,0.00027397,2]
[357462861,1744074670509,-1371.06,0.00027397,2]
[357462862,1744074670518,-500.0,0.00027397,2]
[357462863,1744074670528,-1453.16,0.00027397,2]
[357462864,1744074670537,-2298.95,0.00027397,2]
[357462865,1744074670546,-1238.16,0.00027397,2]
[357462866,1744074670556,-1561.47,0.00027397,2]
[357462867,1744074670565,-1480.25,0.00027397,2]
[357462868,1744074670575,-954.42,0.00027397,2]
[357462869,1744074670584,-1158.68,0.00027397,2]